fUSD/lending_fUSD_20240416
["ID","MTS","AMOUNT","RATE_DAILY","PERIOD"]
[322764017,1713263530430,-305.0373345,0.00017572,2]
[322764018,1713263530456,-192.56707976,0.00017572,2]
[322764019,1713263530481,-786.43640324,0.00017572,2]
[322764020,1713263530506,-200.39776018,0.00017572,2]
[322764021,1713263530538,-1584.38796383,0.00017572,2]
[322764022,1713263530564,-6121.46681653,0.00017573,7]
[322764023,1713263533212,405.34533627,0.00017569,2]
[322764024,1713263603362,155.87430494,0.00016648,2]
[322764025,1713263603956,569.48,0.00015837,2]
[322764026,1713263605651,200.39776018,0.00017692,2]
[322764027,1713263607897,1584.38796383,0.00017692,2]
[322764028,1713263651735,150.0,0.00017689,2]
[322764030,1713263664744,2296.535,0.00017593,2]
[322764031,1713263680901,1584.38796383,0.00017692,2]
[322764032,1713263682661,157.13,0.00014097,2]
[322764033,1713263683740,1362.18596107,0.00017593,2]
[322764034,1713263686811,200.39776018,0.00017692,2]
[322764035,1713263695509,28819.38,0.00028,30]
[322764036,1713263743448,520.0,0.00017599,2]
[322764037,1713263744733,315.42877884,0.00017692,2]
[322764038,1713263748395,250.0,0.00017614,2]
[322764039,1713263764559,10526.80746251,0.00017593,2]
[322764040,1713263956520,2854.0,0.00028,30]
[322764044,1713264070511,541.0,0.00015534,2]
[322764091,1713264532495,82.2259908,0.00015131,2]
[322764092,1713264532520,431.7240092,0.00015131,2]
[322764099,1713264570126,-1584.38796383,0.00017027,2]
[322764100,1713264570152,-87.26966184,0.00017028,2]
[322764101,1713264570213,-412.73033816,0.00017028,2]
[322764102,1713264570241,-208.07,0.00017071,2]
[322764103,1713264570266,-200.0,0.00017093,2]
[322764104,1713264570291,-235.9,0.00017164,2]
[322764105,1713264570317,-288.91,0.00017254,2]
[322764106,1713264570345,-326.04728751,0.00017258,2]
[322764107,1713264570669,-173.95271249,0.00017258,2]
[322764108,1713264570697,-584.0,0.00017272,2]
[322764109,1713264570726,-150.0,0.00017323,2]
[322764110,1713264570753,-250.0,0.00017324,2]
[322764111,1713264570780,-513.70491318,0.00017324,2]
[322764112,1713264570828,-1671.65762567,0.00017324,2]
[322764113,1713264570878,-1671.65762567,0.00017324,2]
[322764114,1713264570908,-1671.65762567,0.00017324,2]
[322764115,1713264571020,-1671.65762567,0.00017324,2]
[322764116,1713264571068,-522.37458414,0.00017324,2]
[322764117,1713264571095,-513.95,0.00017395,2]
[322764118,1713264571122,-150.0,0.00017397,2]
[322764119,1713264571148,-166.78,0.00017424,2]
[322764120,1713264571175,-318.55304153,0.00017462,2]
[322764121,1713264571208,-425.95695847,0.00017462,2]
[322764122,1713264571235,-1245.7006672,0.00017593,2]
[322764123,1713264571265,-1671.65762567,0.00017593,2]
[322764124,1713264571336,-1671.65762567,0.00017593,2]
[322764125,1713264571397,-282.79755028,0.00017593,2]
[322764126,1713264571443,-1671.65762567,0.00017593,2]
[322764132,1713264594164,-1460.747443,0.00017593,2]
[322764133,1713264594189,-617.76396383,0.00017593,2]
[322764134,1713264594240,-574.14875208,0.00017593,2]
[322764135,1713264594266,-1504.36265475,0.00017692,2]
[322764136,1713264594307,-2078.51140683,0.00017692,2]
[322764137,1713264594340,-2078.51140683,0.00017692,2]
[322764138,1713264594436,-2078.51140683,0.00017692,2]
[322764139,1713264594477,-2078.51140683,0.00017692,2]
[322764140,1713264594539,-2078.51140683,0.00017692,2]
[322764141,1713264594587,-2078.51140683,0.00017692,2]
[322764142,1713264594636,-1589.71626754,0.00017692,2]
[322764157,1713264631709,-3128.21794,0.00017692,2]
[322764158,1713264631722,-15564.88401006,0.00017692,2]
[322764159,1713264631816,-1008.9263289,0.00017692,2]
[322764160,1713264631871,-6488.53470984,0.00017692,2]
[322764161,1713264631880,-2609.93421649,0.00017693,2]
[322764162,1713264631925,-4258.00751841,0.00017693,2]
[322764163,1713264631980,-1586.2707048,0.00017693,2]
[322764178,1713264637812,-1019.5806804,0.00017693,2]
[322764179,1713264637919,-235526.2068799,0.00017693,2]
[322764180,1713264637929,-100000.0,0.00017693,2]
[322764181,1713264637938,-635.5754,0.00017693,2]
[322764182,1713264637948,-225.434916,0.00017808,2]
[322764183,1713264637957,-1567.08835202,0.0001788,2]
[322764184,1713264637966,-1567.08835199,0.0001788,2]
[322764185,1713264637975,-1914.37436357,0.0001788,2]
[322764186,1713264637984,-1914.37436353,0.0001788,2]
[322764187,1713264637994,-1191.91271591,0.00017923,2]
[322764188,1713264638003,-6076.0,0.00018,2]
[322764189,1713264638015,-11844.35770118,0.00018,2]
[322764190,1713264638024,-536.0,0.00018055,2]
[322764191,1713264638033,-536.0,0.00018055,2]
[322764192,1713264638042,-317.77570732,0.000181,2]
[322764193,1713264638051,-386.28,0.00018101,2]
[322764194,1713264638060,-499.99,0.00018106,2]
[322764195,1713264638070,-1567.08835199,0.00018106,2]
[322764196,1713264638080,-1914.37436353,0.00018106,2]
[322764197,1713264638090,-7500.0,0.000182,2]
[322764198,1713264638100,-260.41421512,0.00018207,2]
[322764199,1713264638110,-1191.91271591,0.00018252,2]
[322764200,1713264638119,-429.81545066,0.00018262,2]
[322764201,1713264638129,-1310.2143984,0.00018298,2]
[322764202,1713264638139,-1584.38796383,0.00018298,2]
[322764203,1713264638148,-489.66384003,0.00018299,2]
[322764204,1713264638157,-716.0,0.000183,2]
[322764205,1713264638168,-40949.14419393,0.000183,3]
[322764210,1713264639805,-12492.51817066,0.000183,3]
[322764212,1713264640572,-265.95,0.000183,3]
[322764216,1713264640584,-305.14,0.000183,3]
[322764219,1713264640597,-652.04769294,0.000183,3]
[322764222,1713264640610,-406.98059523,0.000183,3]
[322764262,1713264643575,-3584.01589493,0.000183,3]
[322764263,1713264643587,-137294.72668399,0.000183,3]
[322764264,1713264643670,-6214.70084926,0.000183,3]
[322764265,1713264643681,-3411.62134952,0.000183,3]
[322764266,1713264643745,-770.81480608,0.000183,3]
[322764267,1713264643756,-27753.12527075,0.000183,3]
[322764268,1713264643770,-793.42668214,0.000183,3]
[322764269,1713264643780,-1250.69004,0.000183,3]
[322764308,1713264645868,-1212.2582582,0.000183,3]
[322764310,1713264645879,-3264.2630295,0.000183,3]
[322764312,1713264645890,-1649.32414159,0.000183,3]
[322764319,1713264645968,-825.44612141,0.000183,3]
[322764320,1713264645978,-8127.81742424,0.000183,3]
[322764321,1713264646024,-620.1960599,0.000183,3]
[322764322,1713264646082,-21775.74702987,0.000183,3]
[322764324,1713264680360,3911.09266471,0.00028,30]
[322764326,1713264702100,2000.0,0.00017383,7]
[322764327,1713264702120,6485.19636211,0.00017383,7]
[322764329,1713264751862,706.56305197,0.00015,2]
[322764330,1713264802003,1610.13291668,0.0001305,2]
[322764331,1713264802029,2316.69596865,0.0001305,2]
[322764332,1713264802051,208.82796554,0.0001305,2]
[322764333,1713264802072,150.0,0.0001305,2]
[322764334,1713264802094,150.0,0.0001305,2]
[322764335,1713264802115,150.0,0.0001305,2]
[322764336,1713264802140,150.0,0.0001305,2]
[322764337,1713264802161,150.0,0.0001305,2]
[322764338,1713264802181,102.7530464,0.0001305,2]
[322764343,1713264860172,47.2469536,0.000125,2]
[322764344,1713264860193,150.0,0.000125,2]
[322764345,1713264860216,89.4068117,0.000125,2]
[322764349,1713264872820,60.5931883,0.00015,2]
[322764350,1713264872843,150.0,0.00015,2]
[322764351,1713264872863,150.0,0.00015,2]
[322764352,1713264872884,292.77789422,0.00015,2]
[322764353,1713264872910,63283.25301282,0.00015,2]
[322764359,1713264893183,462.56799234,0.00015,2]
[322764360,1713264952746,25000.0,0.00028,30]
[322764361,1713265013656,552.26,0.00014405,2]
[322764362,1713265138271,-569.07857878,0.000225,15]
[322764363,1713265138313,-964.88,0.00024329,15]
[322764364,1713265138347,-274.80782191,0.00025,20]
[322764365,1713265138380,-250.0,0.00025,20]
[322764366,1713265138415,-250.0,0.00025,20]
[322764367,1713265138456,-1200.0,0.00026,27]
[322764368,1713265138502,-1200.0,0.00027,28]
[322764369,1713265138543,-964.88,0.00027068,15]
[322764370,1713265138578,-94684.74800955,0.00027205,14]
[322764371,1713265138635,-1200.0,0.00028,29]
[322764372,1713265138667,-27766.56444351,0.00028,30]
[322764373,1713265139039,-37092.24986981,0.00028,30]
[322764374,1713265400191,2010.6030822,0.00028,30]
[322764378,1713265643254,524.64,0.00014109,2]
[322764379,1713265694395,508.53209349,0.00012,2]
[322764419,1713265831921,-469.42,0.00015706,2]
[322764421,1713265831931,-805.21861813,0.0001584,2]
[322764423,1713265831942,-779.1693457,0.0001584,2]
[322764424,1713265831951,-2523.42121965,0.00015841,2]
[322764425,1713265832202,-4845.53786295,0.00015841,2]
[322764426,1713265832213,-1209.91189694,0.00015841,2]
[322764427,1713265832222,-2610.08810306,0.00015841,2]
[322764428,1713265832234,-1163.06968498,0.00015841,2]
[322764429,1713265832242,-250.0,0.00015843,2]
[322764430,1713265832252,-789.14,0.0001588,2]
[322764431,1713265832261,-199.33,0.00015899,2]
[322764432,1713265832270,-156.65,0.00015909,2]
[322764433,1713265832279,-532.8,0.00015932,2]
[322764434,1713265832288,-4091.79,0.00015982,2]
[322764435,1713265832297,-150.0,0.00016044,2]
[322764436,1713265832306,-3078.46,0.00016045,2]
[322764437,1713265832316,-156.65,0.00016074,2]
[322764438,1713265832325,-967.02,0.00016099,2]
[322764439,1713265832336,-499.99,0.00016099,2]
[322764441,1713265832345,-176.26448829,0.00016105,2]
[322764443,1713265832354,-500.0,0.00016132,2]
[322764445,1713265832363,-287.24,0.00016132,2]
[322764447,1713265832372,-193.42,0.00016164,2]
[322764449,1713265832380,-2526.12,0.00016164,2]
[322764452,1713265832389,-150.99,0.00016164,2]
[322764455,1713265832397,-317.6,0.00016164,2]
[322764457,1713265832407,-467.2,0.00016212,2]
[322764459,1713265832416,-156.65,0.0001624,2]
[322764461,1713265832425,-524.64,0.00016373,2]
[322764463,1713265832435,-156.65,0.00016406,2]
[322764465,1713265832444,-156.65,0.00016572,2]
[322764467,1713265832453,-748.53241802,0.00016648,2]
[322764469,1713265832462,-156.65,0.00016738,2]
[322764471,1713265832473,-167.0,0.0001683,2]
[322764473,1713265832483,-393.99749642,0.00017288,2]
[322764475,1713265832492,-274.67471971,0.00017337,2]
[322764477,1713265832501,-234.24824054,0.00017342,2]
[322764479,1713265832511,-274.67471971,0.00017348,2]
[322764481,1713265832520,-120362.72965698,0.00017348,2]
[322764483,1713265832532,-6628.88848454,0.00017348,2]
[322764485,1713265832541,-274.67471971,0.00017352,2]
[322764487,1713265832550,-3633.76839719,0.00017353,2]
[322764528,1713265838035,-688.41774245,0.00017353,2]
[322764535,1713265840597,-532.96500009,0.00017353,2]
[322764537,1713265840611,-1845.99160589,0.00017353,2]
[322764541,1713265840625,-781.6600001,0.00017353,2]
[322764544,1713265840638,-285.75552007,0.00017353,2]
[322764565,1713265843245,-31383.90267252,0.00017353,2]
[322764566,1713265843257,-13421.53344847,0.00017353,2]
[322764575,1713265845969,-1254.90632,0.00017353,2]
[322764577,1713265845981,-1201.21589749,0.00017353,2]
[322764582,1713265857190,200.0,0.000169,6]
[322764583,1713265859302,500.0,0.000176,6]
[322764584,1713265861504,800.0,0.000177,6]
[322764585,1713265863630,1100.0,0.000178,6]
[322764586,1713265865751,1300.0,0.000179,6]
[322764587,1713266174149,150.0,0.00014457,2]
[322764588,1713266174170,150.0,0.00014457,2]
[322764589,1713266174191,150.0,0.00014457,2]
[322764590,1713266174213,54.45,0.00014457,2]
[322764591,1713266484700,150.0,0.0001418,2]
[322764592,1713266484722,13.03761412,0.0001418,2]
[322764593,1713266626039,150.0,0.00014927,2]
[322764594,1713266626060,50.23991401,0.00014927,2]
[322764595,1713266667032,479.22,0.00014448,2]
[322764596,1713266834171,7776.0,0.0001,14]
[322764649,1713267022407,25000.0,0.00028,30]
[322764664,1713267032228,-551.55355935,0.00016277,2]
[322764665,1713267032238,-157.92490406,0.00016278,2]
[322764666,1713267032247,-500.0,0.00016344,2]
[322764667,1713267032256,-2550.00738013,0.0001635,2]
[322764668,1713267032321,-110.77261987,0.0001635,2]
[322764669,1713267032330,-191.42,0.00016366,2]
[322764670,1713267032339,-426.24,0.00016368,2]
[322764671,1713267032349,-573.76,0.00016375,2]
[322764672,1713267032359,-479.22,0.00016712,2]
[322764673,1713267032369,-612.1509,0.0001724,2]
[322764674,1713267032379,-150.0,0.0001726,2]
[322764675,1713267032391,-267.462202,0.0001726,2]
[322764676,1713267032400,-2494.55,0.00017261,2]
[322764677,1713267032409,-282.04,0.00017261,2]
[322764678,1713267032419,-471.02709651,0.00017261,2]
[322764713,1713267038213,-28.96290349,0.00017261,2]
[322764714,1713267038226,-663.54709651,0.00017262,2]
[322764715,1713267038373,-440.51009051,0.00017262,2]
[322764716,1713267038388,-4559.48990949,0.00017262,2]
[322764717,1713267038400,-1122.94407473,0.00017262,2]
[322764742,1713267040706,-849.99222008,0.00017262,2]
[322764743,1713267040719,-20677.03095091,0.00017262,2]
[322764744,1713267040736,-4942.1335,0.00017263,2]
[322764746,1713267040747,-119974.402,0.00017263,2]
[322764747,1713267040757,-766.46450308,0.00017264,2]
[322764748,1713267040768,-5288.21672368,0.0001734,2]
[322764749,1713267040779,-5288.21672368,0.00017347,2]
[322764750,1713267040790,-28205.0463438,0.00017353,2]
[322764751,1713267040802,-273.33999998,0.00017353,2]
[322764752,1713267040814,-817.00329108,0.00017353,2]
[322764753,1713267040827,-314.18712,0.00017353,2]
[322764757,1713267043422,-10572.3204,0.00017353,2]
[322764758,1713267043640,-1528.10427343,0.00017353,2]
[322764766,1713267046416,-30251.50010896,0.00017353,2]
[322764767,1713267046425,-2067.01716695,0.00017356,2]
[322764768,1713267046486,-251.816368,0.00017356,2]
[322764770,1713267153679,150.0,0.00014458,2]
[322764771,1713267153700,150.0,0.00014458,2]
[322764772,1713267153721,150.0,0.00014458,2]
[322764773,1713267153744,11.96,0.00014458,2]
[322764774,1713267647519,150.0,0.0001442,2]
[322764775,1713267647549,288.86,0.0001442,2]
[322764776,1713267686791,-310.11177363,0.00016044,2]
[322764777,1713267686811,-3228.83796738,0.00016044,2]
[322764778,1713267686832,-740.0,0.00016144,2]
[322764779,1713267686853,-162.59,0.00016198,2]
[322764780,1713267686873,-341.59,0.00016295,2]
[322764781,1713267686893,-500.0,0.00016338,2]
[322764782,1713267686914,-250.0,0.00016346,2]
[322764783,1713267686938,-672.47872495,0.00016367,2]
[322764784,1713267686958,-197.93,0.00016368,2]
[322764785,1713267686980,-194.56,0.00016369,2]
[322764786,1713267687001,-659.0,0.0001637,2]
[322764787,1713267687021,-150.99,0.0001637,2]
[322764788,1713267687044,-150.99,0.0001637,2]
[322764789,1713267687064,-499.99,0.00016373,2]
[322764790,1713267687086,-438.86,0.00016684,2]
[322764791,1713267687107,-150.0,0.00017115,2]
[322764792,1713267687128,-150.0,0.00017236,2]
[322764793,1713267687148,-3018.0942,0.00017256,2]
[322764794,1713267687170,-150.0,0.00017262,2]
[322764795,1713267687194,-3808.0366,0.00017263,2]
[322764796,1713267687216,-908.76,0.000173,2]
[322764797,1713267687238,-230.11793251,0.00017334,2]
[322764798,1713267687259,-230.11793251,0.00017339,2]
[322764799,1713267687280,-856.94486902,0.00017353,2]
[322764801,1713267979251,23720.0,0.00027,30]
[322764827,1713268051225,23725.21,0.00027,30]
[322764862,1713268167743,-405.34533627,0.00016359,2]
[322764863,1713268167775,-1982.16088613,0.0001636,2]
[322764864,1713268167801,-16.78028112,0.00016366,2]
[322764865,1713268167867,-520.03327058,0.00016366,2]
[322764866,1713268167893,-340.37017988,0.00016368,2]
[322764868,1713268192341,150.0,0.00014332,2]
[322764869,1713268192362,150.0,0.00014332,2]
[322764870,1713268192384,94.97,0.00014332,2]
[322764871,1713268192674,-659.62982012,0.00016368,2]
[322764872,1713268192701,-1809.95048248,0.00016369,2]
[322764896,1713268238295,-6477.81365,0.00016368,2]
[322764897,1713268238350,-492.130993,0.00016368,2]
[322764898,1713268238362,-4395.733603,0.00016368,2]
[322764901,1713268238800,-500.0,0.00016368,2]
[322764902,1713268238812,-10017.72177958,0.00016368,2]
[322764982,1713268240651,-495.56476405,0.00016368,2]
[322764984,1713268240663,-587.23979256,0.00016368,2]
[322764987,1713268240678,-1000.07439358,0.00016368,2]
[322764989,1713268240689,-421.06671528,0.00016368,2]
[322764991,1713268240700,-1561.48976534,0.00016368,2]
[322764993,1713268240711,-1120.32376913,0.00016368,2]
[322764995,1713268240722,-1000.0,0.00016368,2]
[322764997,1713268240735,-626.09288,0.00016368,2]
[322764999,1713268240746,-3744.44100708,0.00016368,2]
[322765001,1713268240755,-787.17001536,0.00016369,2]
[322765035,1713268241057,-775.77409809,0.00016367,2]
[322765037,1713268241068,-1206.38678804,0.00016367,2]
[322765039,1713268241077,-1051.73865775,0.00016369,2]
[322765130,1713268243523,-1075.92059909,0.00016369,2]
[322765131,1713268243532,-196.93,0.0001637,2]
[322765132,1713268243542,-158.72,0.00016483,2]
[322765133,1713268243551,-158.72,0.00016545,2]
[322765134,1713268243560,-394.97,0.00016596,2]
[322765135,1713268243570,-158.72,0.00016606,2]
[322765136,1713268243579,-158.72,0.00016667,2]
[322765137,1713268243588,-240.715982,0.00016712,2]
[322765138,1713268243597,-158.72,0.00016729,2]
[322765139,1713268243606,-158.72,0.0001679,2]
[322765140,1713268243616,-158.72,0.00016851,2]
[322765141,1713268243625,-831.65,0.00016851,2]
[322765142,1713268243634,-499.99,0.00016851,2]
[322765143,1713268243643,-158.72,0.00016913,2]
[322765144,1713268243652,-158.72,0.00016974,2]
[322765145,1713268243662,-521.47,0.00017024,2]
[322765146,1713268243671,-418.65,0.00017024,2]
[322765147,1713268243680,-1.37599369,0.00017024,2]
[322765148,1713268243692,-533.87400631,0.00017024,2]
[322765149,1713268243702,-473.68,0.00017024,2]
[322765150,1713268243710,-250.88,0.00017024,2]
[322765151,1713268243719,-154.38,0.00017024,2]
[322765152,1713268243729,-300.0,0.00017024,2]
[322765153,1713268243738,-328.73199369,0.00017024,2]
[322765154,1713268244385,-89.91800631,0.00017024,2]
[322765155,1713268244394,-521.47,0.00017024,2]
[322765156,1713268244403,-394.68912409,0.00017024,2]
[322765160,1713268246578,-126.78087591,0.00017024,2]
[322765161,1713268246588,-418.65,0.00017024,2]
[322765162,1713268246597,-158.72,0.00017035,2]
[322765163,1713268246606,-158.72,0.00017097,2]
[322765164,1713268246617,-150.0,0.00017151,2]
[322765165,1713268246626,-158.72,0.00017158,2]
[322765166,1713268246636,-300.0,0.00017169,2]
[322765167,1713268246645,-158.72,0.00017219,2]
[322765168,1713268246655,-150.0,0.00017259,2]
[322765169,1713268246665,-158.72,0.00017281,2]
[322765170,1713268246675,-1261.16356177,0.00017333,2]
[322765171,1713268246684,-158.72,0.00017342,2]
[322765172,1713268246693,-7987.1538801,0.00017347,2]
[322765173,1713268246702,-1192.25016222,0.00017349,2]
[322765176,1713268321211,-155.0,0.00016367,2]
[322765177,1713268321237,-1506.02550572,0.00016367,2]
[322765178,1713268321339,-476.13538041,0.00016367,2]
[322765179,1713268321365,-466.80816731,0.00016368,2]
[322765180,1713268321391,-12.03041544,0.00016368,2]
[322765181,1713268321434,-971.65966562,0.00016368,2]
[322765182,1713268321489,-925.33456355,0.00016368,2]
[322765183,1713268321548,-1756.27292428,0.00016368,2]
[322765184,1713268321607,-973.35260352,0.00016368,2]
[322765185,1713268321684,-1266.00652154,0.00016368,2]
[322765186,1713268321716,-1756.27292428,0.00016368,2]
[322765187,1713268321752,-459.66657209,0.00016368,2]
[322765188,1713268322110,-1651.91977442,0.00016368,2]
[322765189,1713268322138,-104.35314986,0.00016369,2]
[322765190,1713268322211,-491.19144121,0.00016369,2]
[322765192,1713268322240,-716.98873483,0.00016369,2]
[322765193,1713268322314,-1603.92804221,0.00016369,2]
[322765194,1713268322362,-1120.84608875,0.00016369,2]
[322765196,1713268435242,7659.22313366,0.00028,30]
[322765197,1713268463038,1422.35557252,0.00012,30]
[322765202,1713268694577,150.0,0.00014406,2]
[322765203,1713268694598,150.0,0.00014406,2]
[322765204,1713268694618,147.51,0.00014406,2]
[322765206,1713269286398,2.49,0.00013957,2]
[322765207,1713269286421,150.0,0.00013957,2]
[322765208,1713269286442,150.0,0.00013957,2]
[322765209,1713269286464,122.64,0.00013957,2]
[322765210,1713269327753,-1982.16088613,0.00015608,2]
[322765211,1713269327777,-102.38788765,0.00015608,2]
[322765212,1713269327857,-1879.77299848,0.00015608,2]
[322765213,1713269327883,-204.7757753,0.00015608,2]
[322765214,1713269327913,-1777.38511083,0.00015608,2]
[322765215,1713269327937,-150.0,0.00015609,2]
[322765216,1713269327965,-150.0,0.00015609,2]
[322765217,1713269327991,-7.16366295,0.0001561,2]
[322765218,1713269328035,-1974.99722318,0.0001561,2]
[322765219,1713269328059,-109.5515506,0.00015611,2]
[322765220,1713269328105,-45.4484494,0.00015611,2]
[322765221,1713269328129,-162.59,0.00015857,2]
[322765222,1713269328154,-167.62,0.00016091,2]
[322765223,1713269328181,-154.33,0.0001618,2]
[322765224,1713269328206,-154.33,0.00016207,2]
[322765225,1713269328231,-425.13,0.00016221,2]
[322765226,1713269328257,-154.33,0.00016234,2]
[322765227,1713269328281,-150.0,0.00016242,2]
[322765228,1713269328305,-670.77032438,0.00016247,2]
[322765229,1713269328423,-1380.68967562,0.00016247,2]
[322765230,1713269328450,-606.62,0.0001625,2]
[322765231,1713269328477,-97.23909816,0.00016251,2]
[322765232,1713269328575,-702.76090184,0.00016251,2]
[322765233,1713269328601,-154.33,0.00016261,2]
[322765234,1713269328627,-167.62,0.000163,2]
[322765235,1713269328652,-167.08,0.00016358,2]
[322765236,1713269328677,-200.0,0.0001636,2]
[322765237,1713269328704,-167.62,0.0001651,2]
[322765238,1713269328728,-216.644384,0.00016712,2]
[322765239,1713269328753,-167.62,0.0001672,2]
[322765240,1713269328776,-119.69242987,0.00016901,2]
[322765241,1713269328806,-2082.09757013,0.00016901,2]
[322765242,1713269328831,-2.45120365,0.00016929,2]
[322765243,1713269328880,-165.16879635,0.00016929,2]
[322765244,1713269328907,-150.0,0.00016978,2]
[322765245,1713269328931,-150.0,0.00017078,2]
[322765246,1713269328961,-568.4,0.00017078,2]
[322765247,1713269328988,-1042.5,0.00017078,2]
[322765248,1713269329014,-8.47997743,0.00017078,2]
[322765249,1713269329049,-293.57002257,0.00017078,2]
[322765250,1713269329075,-294.83,0.00017078,2]
[322765251,1713269329100,-150.0,0.00017078,2]
[322765252,1713269329130,-210.0,0.00017169,2]
[322765253,1713269329159,-210.0,0.00017169,2]
[322765254,1713269329185,-251.36502565,0.00017172,2]
[322765255,1713269329210,-302.2528,0.0001718,2]
[322765256,1713269329235,-150.0,0.000172,2]
[322765257,1713269329261,-222.53092556,0.00017246,2]
[322765258,1713269329313,-2084.54877378,0.00017246,2]
[322765259,1713269352214,-474.54208094,0.00015608,2]
[322765260,1713269352265,-1507.61880519,0.00015608,2]
[322765261,1713269352290,-1035.10707766,0.00017246,2]
[322765274,1713269432004,-192.56707976,0.00017235,2]
[322765275,1713269432015,-884.77631037,0.00017236,2]
[322765276,1713269432026,-590.52618963,0.00017236,2]
[322765277,1713269432035,-7816.05701201,0.00017246,2]
[322765278,1713269432045,-1268.91679678,0.00017256,2]
[322765279,1713269432179,-365.73055626,0.00017256,2]
[322765280,1713269432238,-388.17595752,0.00017256,2]
[322765282,1713269432250,-1065.95942586,0.00017256,2]
[322765291,1713269437686,-630.15,0.00017256,2]
[322765292,1713269437700,-1265.358,0.00017256,2]
[322765293,1713269437859,-775.44461026,0.00017256,2]
[322765294,1713269437870,-9798.94828916,0.00017256,2]
[322765300,1713269440597,-123316.13846416,0.00017256,2]
[322765302,1713269440608,-194.979945,0.0001726,2]
[322765304,1713269440619,-670.65644016,0.00017263,2]
[322765306,1713269440631,-554.073329,0.0001728,2]
[322765309,1713269440643,-19117.43497402,0.00017331,2]
[322765311,1713269440654,-19117.43497402,0.00017336,2]
[322765314,1713269440665,-800.0,0.00017342,2]
[322765316,1713269440675,-155.0,0.00017345,2]
[322765319,1713269440685,-155.0,0.00017345,2]
[322765322,1713269440699,-199.66707351,0.00017345,2]
[322765325,1713269440709,-155.0,0.00017345,2]
[322765327,1713269440719,-157.10099705,0.00017346,2]
[322765330,1713269440729,-543.70273888,0.00017346,2]
[322765333,1713269440738,-2933.914974,0.00017347,2]
[322765336,1713269440748,-5887.6203813,0.00017347,2]
[322765338,1713269440758,-3868.8276746,0.00017347,2]
[322765341,1713269440767,-151.0,0.00017347,2]
[322765343,1713269440777,-151.0,0.00017347,2]
[322765346,1713269440786,-151.0,0.00017347,2]
[322765347,1713269440795,-151.0,0.00017347,2]
[322765349,1713269440804,-336.976082,0.00017347,2]
[322765350,1713269440813,-336.976082,0.00017347,2]
[322765351,1713269440823,-151.0,0.00017347,2]
[322765352,1713269440834,-520.110616,0.00017347,2]
[322765353,1713269440843,-151.0,0.00017347,2]
[322765354,1713269440852,-151.0,0.00017347,2]
[322765355,1713269440862,-151.0,0.00017347,2]
[322765356,1713269440871,-151.0,0.00017347,2]
[322765357,1713269440880,-151.0,0.00017347,2]
[322765358,1713269440889,-152.751919,0.00017347,2]
[322765359,1713269440898,-1486.466945,0.00017347,2]
[322765360,1713269440908,-1486.466945,0.00017347,2]
[322765361,1713269440918,-158.4099,0.00017347,2]
[322765362,1713269440927,-162.476902,0.00017347,2]
[322765363,1713269440937,-162.476902,0.00017347,2]
[322765364,1713269440949,-225.990248,0.00017347,2]
[322765365,1713269440959,-225.990248,0.00017347,2]
[322765366,1713269440968,-154.144249,0.00017347,2]
[322765367,1713269440978,-151.698687,0.00017347,2]
[322765368,1713269440987,-151.698687,0.00017347,2]
[322765369,1713269440997,-151.698687,0.00017347,2]
[322765370,1713269441006,-151.698687,0.00017347,2]
[322765371,1713269441015,-151.0,0.00017347,2]
[322765372,1713269441025,-214.464819,0.00017347,2]
[322765373,1713269441035,-214.464819,0.00017347,2]
[322765374,1713269441044,-153.400018,0.00017347,2]